Workbook

Sheet 化学工程与技术专业
A1: 化学工程与环境学院2019级全日制硕士研究生复试成绩汇及拟录取情况公示
A2: 复试小组名称： 化学工程系（学术型）
A3: 序号 | B3: 考生编号 | C3: 姓名 | D3: 笔试专业成绩 | E3: 面试专业成绩 | F3: 面试英语成绩 | G3: 复试成绩 | H3: 初试成绩 | I3: 总成绩 | J3: 是否拟录取 | K3: 拟录取专业 | L3: 考生来源（推免/预录取/统考） | M3: 备注
A4: 1 | B4: 102519210008164 | C4: 苑学卿 | D4: 54 | E4: 78.00 | F4: 71.20 | G4: =D4*0.4+E4*0.3+F4*0.3 -> 66.36 | H4: 361 | I4: =G4*0.5+H4/5*0.5 -> 69.28 | J4: 是 | K4: 化学工程与技术 | L4: 统考
A5: 2 | B5: 105339140208518 | C5: 杨园园 | D5: 50 | E5: 56.00 | F5: 58.80 | G5: =D5*0.4+E5*0.3+F5*0.3 -> 54.44 | H5: 365 | I5: =G5*0.5+H5/5*0.5 -> 63.72 | J5: 否 | L5: 统考
A6: 3 | B6: 114149111641074 | C6: 高蕾 | D6: 70 | E6: 74.00 | F6: 70.00 | G6: =D6*0.4+E6*0.3+F6*0.3 -> 71.20 | H6: 282 | I6: 63.80 | J6: 复试合格 | M6: 2+X
B25: 招生复试负责人签字： | H25: 复试秘书签字： | K25: 时间：

Sheet 化学工程专硕
A1: 化学工程与环境学院2019级全日制硕士研究生复试成绩汇及拟录取情况公示
A2: 复试小组名称： 化学工艺系（专业型）
A3: 序号 | B3: 考生编号 | C3: 姓名 | D3: 笔试专业成绩 | E3: 面试专业成绩 | F3: 面试英语成绩 | G3: 复试成绩 | H3: 初试成绩 | I3: 总成绩 | J3: 是否拟录取 | K3: 录取专业 | L3: 考生来源（推免/预录取/统考） | M3: 备注
A4: 1 | B4: 102869347013784 | C4: 张娟 | D4: 46 | E4: 76.6667 | F4: 65 | G4: =0.4*D4+0.3*E4+0.3*F4 -> 60.9000 | H4: 359 | I4: =G4*0.5+H4*0.1 -> 66.3500 | J4: 是 | K4: 化学工程 | L4: 统考
A5: 2 | B5: 100569019620909 | C5: 高慧慧 | D5: 52 | E5: 68.3333 | F5: 70.2 | G5: 62.3600 | H5: 356 | I5: 66.7800 | J5: 是 | K5: 化学工程 | L5: 统考
A6: 3 | B6: 102849212402761 | C6: 史永鑫 | D6: 58 | E6: 79.8333 | F6: 56 | G6: 63.9500 | H6: 356 | I6: 67.5750 | J6: 是 | K6: 化学工程 | L6: 统考
A7: 4 | B7: 114149161033710 | C7: 高海洋 | D7: 64 | E7: 69.6667 | F7: 71.2 | G7: 67.8600 | H7: 345 | I7: 68.4300 | J7: 是 | K7: 化学工程 | L7: 统考
A8: 5 | B8: 101419211003516 | C8: 许佳翠 | D8: 50 | E8: 84.3333 | F8: 61.2 | G8: 63.6600 | H8: 341 | I8: 65.9300 | J8: 是 | K8: 化学工程 | L8: 统考
A9: 6 | B9: 100569019921107 | C9: 王惠琳 | D9: 60 | E9: 77.5000 | F9: 80 | G9: 71.2500 | H9: 339 | I9: 69.5250 | J9: 是 | K9: 化学工程 | L9: 统考
A10: 7 | B10: 105619200008252 | C10: 刘俊良 | D10: 72 | E10: 87.0000 | F10: 73 | G10: 76.8000 | H10: 329 | I10: 71.3000 | J10: 是 | K10: 化学工程 | L10: 统考
A11: 8 | B11: 105619200007705 | C11: 于亚楠 | D11: 46 | E11: 89.8333 | F11: 79.6 | G11: 69.2300 | H11: 327 | I11: 67.3150 | J11: 是 | K11: 化学工程 | L11: 统考
A12: 9 | B12: 101419211003535 | C12: 谢浩东 | D12: 48 | E12: 77.0000 | F12: 77 | G12: 65.4000 | H12: 326 | I12: 65.3000 | J12: 是 | K12: 化学工程 | L12: 统考
A13: 10 | B13: 100109100000061 | C13: 刘鑫智 | D13: 54 | E13: 75.0000 | F13: 68.6 | G13: 64.6800 | H13: 309 | I13: 63.2400 | J13: 是 | K13: 化学工程 | L13: 统考
A14: 11 | B14: 100109100001466 | C14: 李之辉 | D14: 54 | E14: 74.8333 | F14: 68 | G14: 64.4500 | H14: 305 | I14: 62.7250 | J14: 是 | K14: 化学工程 | L14: 统考
A15: 12 | B15: 114149111641037 | C15: 鹿瑾 | D15: 60 | E15: 76.6667 | F15: 74.4 | G15: 69.3200 | H15: 300 | I15: 64.6600 | J15: 是 | K15: 化学工程 | L15: 统考
A16: 13 | B16: 102519210004730 | C16: 王浩泽 | D16: 76 | E16: 81.1667 | F16: 69.8 | G16: 75.6900 | H16: 294 | I16: 67.2450 | J16: 是 | K16: 化学工程 | L16: 统考
A17: 14 | B17: 105619200008099 | C17: 袁宇轩 | D17: 50 | E17: 71.3333 | F17: 60 | G17: =0.4*D17+0.3*E17+0.3*F17 -> 59.4000 | H17: 320 | I17: =G17*0.5+H17*0.1 -> 61.7000 | J17: 否
A19: 招生复试负责人签字： | G19: 复试秘书签字：

Sheet 动力工程
A1: 化学工程与环境学院2019级全日制硕士研究生复试成绩汇及拟录取情况公示
A2: 复试小组名称： 动力工程（专业型）
A3: 序号 | B3: 考生编号 | C3: 姓名 | D3: 笔试专业成绩 | E3: 面试专业成绩 | F3: 面试英语成绩 | G3: 复试成绩 | H3: 初试成绩 | I3: 总成绩 | J3: 是否拟录取 | K3: 录取专业 | L3: 考生来源（推免/预录取/统考） | M3: 备注
A4: 1 | B4: 104259540000816 | C4: 蔺喆 | D4: 59 | E4: 79.33 | F4: 75.67 | G4: =D4*0.4+E4*0.3+F4*0.3 -> 70.10 | H4: 338 | I4: =H4/5*0.5+G4*0.5 -> 68.85 | J4: 拟录取 | K4: 动力工程 | L4: 统考
A5: 2 | B5: 104259540000804 | C5: 韩笑 | D5: 59 | E5: 78.83 | F5: 76.00 | G5: 70.05 | H5: 338 | I5: 68.83 | J5: 拟录取 | K5: 动力工程 | L5: 统考
A6: 3 | B6: 104259540000809 | C6: 王逸凡 | D6: 46 | E6: 80.50 | F6: 87.17 | G6: 68.70 | H6: 335 | I6: 67.85 | J6: 拟录取 | K6: 动力工程 | L6: 统考
A7: 4 | B7: 100569000104343 | C7: 王建超 | D7: 53 | E7: 66.33 | F7: 65.67 | G7: 60.80 | H7: 333 | I7: 63.70 | J7: 拟录取 | K7: 动力工程 | L7: 统考
A8: 5 | B8: 100039012001576 | C8: 雷琦玉 | D8: 44 | E8: 78.17 | F8: 93.33 | G8: 69.05 | H8: 290 | I8: 63.53 | J8: 复试合格 | K8: 动力工程 | L8: 统考 | M8: 2+X
A9: 6 | B9: 102519210008067 | C9: 李喜峰 | D9: 47 | E9: 69.00 | F9: 68.50 | G9: 60.05 | H9: 329 | I9: 62.93 | J9: 否
A10: 7 | B10: 101419610310939 | C10: 陈强 | D10: 44 | E10: 68.00 | F10: 68.00 | G10: 58.40 | H10: 335 | I10: 62.70 | J10: 否
A11: 8 | B11: 103589210001206 | C11: 王德富 | D11: 47 | E11: 61.33 | F11: 56.00 | G11: 54.00 | H11: 312 | I11: 58.20 | J11: 否

Sheet 环境工程专硕
A1: 化学工程与环境学院2019级全日制硕士研究生复试成绩汇及拟录取情况公示
A2: 复试小组名称： 环境工程（专业型）
A3: 序号 | B3: 考生编号 | C3: 姓名 | D3: 笔试专业成绩 | E3: 面试专业成绩 | F3: 面试英语成绩 | G3: 复试成绩 | H3: 初试成绩 | I3: 总成绩 | J3: 是否拟录取 | K3: 录取专业 | L3: 考生来源（推免/预录取/统考） | M3: 工作站 | N3: 备注
A4: 1 | B4: 144309042000147 | C4: 刘莎莎 | D4: 72 | E4: 83.6 | F4: 86.7 | G4: =D4*0.4+E4*0.3+F4*0.3 -> 79.87 | H4: 343 | I4: =(H4/5)*0.5+G4*0.5 -> 74.24 | J4: 是 | K4: 环境工程 | L4: 统考
A5: 2 | B5: 144309042000305 | C5: 张雯滔 | D5: 74 | E5: 91.7 | F5: 90.0 | G5: 84.11 | H5: 320 | I5: 74.06 | J5: 是 | K5: 环境工程 | L5: 统考
A6: 3 | B6: 144309042000055 | C6: 赵东松 | D6: 58 | E6: 87.1 | F6: 78.3 | G6: 72.84 | H6: 353 | I6: 71.72 | J6: 是 | K6: 环境工程 | L6: 统考
A7: 4 | B7: 144309042000183 | C7: 闫玉琼 | D7: 62 | E7: 72.1 | F7: 73.3 | G7: 68.44 | H7: 299 | I7: 64.12 | J7: 否
